[Event "Titled Tuesday Blitz March 07 Early 2023"]
[White "Melikyan, Gnel"]
[Black "Aradhya, Garg"]
[WhiteFideId "54109990"]
[BlackFideId "25006746"]
[WhiteElo "2138"]
[BlackElo "2263"]
[Result "0-1"]
[Round "07"]
[TimeControl "180+2"]
[Date "2023.03.07"]
[WhiteClock "0:00:11"]
[BlackClock "0:00:15"]

1. e4 {[%clk 0:03:00]}  e5 {[%clk 0:02:59]} 2. Nf3 {[%clk 0:02:57]}  Nc6 {[%clk 0:03:00]} 3. d4 {[%clk 0:02:49]}  exd4 {[%clk 0:03:00]} 4. Nxd4 {[%clk 0:02:50]}  Nf6 {[%clk 0:03:00]} 5. Nxc6 {[%clk 0:02:50]}  bxc6 {[%clk 0:03:00]} 6. e5 {[%clk 0:02:51]}  Qe7 {[%clk 0:03:00]} 7. Qe2 {[%clk 0:02:51]}  Nd5 {[%clk 0:03:01]} 8. c4 {[%clk 0:02:52]}  Nb6 {[%clk 0:03:01]} 9. Nc3 {[%clk 0:02:51]}  Qe6 {[%clk 0:03:01]} 10. Qe4 {[%clk 0:02:51]}  g6 {[%clk 0:03:00]} 11. Bd3 {[%clk 0:02:50]}  Bg7 {[%clk 0:02:51]} 12. O-O {[%clk 0:02:49]}  O-O {[%clk 0:02:42]} 13. Bf4 {[%clk 0:02:31]}  Ba6 {[%clk 0:02:35]} 14. b3 {[%clk 0:02:31]}  d5 {[%clk 0:02:30]} 15. cxd5 {[%clk 0:02:31]}  cxd5 {[%clk 0:02:31]} 16. Qe2 {[%clk 0:02:31]}  Bxd3 {[%clk 0:02:29]} 17. Qxd3 {[%clk 0:02:32]}  c6 {[%clk 0:02:11]} 18. Rfe1 {[%clk 0:02:28]}  Rfe8 {[%clk 0:02:10]} 19. Bg3 {[%clk 0:02:19]}  f6 {[%clk 0:02:09]} 20. f4 {[%clk 0:02:14]}  fxe5 {[%clk 0:02:09]} 21. fxe5 {[%clk 0:02:14]}  Rad8 {[%clk 0:02:04]} 22. Ne2 {[%clk 0:02:08]}  Bxe5 {[%clk 0:01:51]} 23. Nd4 {[%clk 0:02:07]}  Qd6 {[%clk 0:01:51]} 24. Rxe5 {[%clk 0:02:02]}  Rxe5 {[%clk 0:01:52]} 25. Nxc6 {[%clk 0:01:58]}  Qc5+ {[%clk 0:01:41]} 26. Kh1 {[%clk 0:01:50]}  Re3 {[%clk 0:01:41]} 27. Qxe3 {[%clk 0:01:35]}  Qxe3 {[%clk 0:01:38]} 28. Nxd8 {[%clk 0:01:35]}  d4 {[%clk 0:01:38]} 29. Re1 {[%clk 0:01:31]}  Qc3 {[%clk 0:01:29]} 30. Re8+ {[%clk 0:01:24]}  Kg7 {[%clk 0:01:29]} 31. Be5+ {[%clk 0:01:23]}  Kh6 {[%clk 0:01:29]} 32. h3 {[%clk 0:01:11]}  Qe1+ {[%clk 0:00:23]} 33. Kh2 {[%clk 0:01:10]}  Qf2 {[%clk 0:00:24]} 34. Ne6 {[%clk 0:00:41]}  g5 {[%clk 0:00:23]} 35. Bg7+ {[%clk 0:00:38]}  Kg6 {[%clk 0:00:22]} 36. Bxd4 {[%clk 0:00:34]}  Qf7 {[%clk 0:00:20]} 37. Nf8+ {[%clk 0:00:34]}  Kh5 {[%clk 0:00:15]} 38. Nxh7 {[%clk 0:00:32]}  Qf4+ {[%clk 0:00:12]} 39. g3 {[%clk 0:00:29]}  Qxd4 {[%clk 0:00:13]} 40. Re6 {[%clk 0:00:22]}  Qf2+ {[%clk 0:00:13]} 41. Kh1 {[%clk 0:00:22]}  Qf3+ {[%clk 0:00:13]} 42. Kh2 {[%clk 0:00:22]}  Qf2+ {[%clk 0:00:14]} 43. Kh1 {[%clk 0:00:23]}  Qxg3 {[%clk 0:00:14]} 44. Nf6+ {[%clk 0:00:16]}  Kh4 {[%clk 0:00:14]} 45. Re4+ {[%clk 0:00:11]}  Kxh3 {[%clk 0:00:15]} 0-1


[Site "https://www.chess.com"]

[Event "Titled Tuesday Blitz March 07 Early 2023"]
[White "Wagner, Dennis"]
[Black "Perez Gormaz, Matias"]
[WhiteFideId "24650684"]
[BlackFideId "3406342"]
[WhiteElo "2470"]
[BlackElo "2362"]
[Result "1-0"]
[Round "07"]
[TimeControl "180+2"]
[Date "2023.03.07"]
[WhiteClock "0:00:10"]
[BlackClock "0:00:04"]

1. Nf3 {[%clk 0:03:00]}  d5 {[%clk 0:02:55]} 2. e3 {[%clk 0:03:00]}  Nf6 {[%clk 0:02:51]} 3. c4 {[%clk 0:03:01]}  e6 {[%clk 0:02:50]} 4. Nc3 {[%clk 0:03:01]}  Be7 {[%clk 0:02:46]} 5. b3 {[%clk 0:03:01]}  O-O {[%clk 0:02:43]} 6. Bb2 {[%clk 0:03:01]}  b6 {[%clk 0:02:42]} 7. cxd5 {[%clk 0:02:58]}  Nxd5 {[%clk 0:02:39]} 8. h4 {[%clk 0:02:49]}  Bb7 {[%clk 0:02:33]} 9. Qb1 {[%clk 0:02:47]}  Nd7 {[%clk 0:02:15]} 10. Ng5 {[%clk 0:02:41]}  N5f6 {[%clk 0:02:09]} 11. Bd3 {[%clk 0:02:33]}  h6 {[%clk 0:02:03]} 12. Nce4 {[%clk 0:02:29]}  Nxe4 {[%clk 0:01:34]} 13. Bxe4 {[%clk 0:02:29]}  Bxe4 {[%clk 0:01:28]} 14. Qxe4 {[%clk 0:02:24]}  Bxg5 {[%clk 0:01:25]} 15. hxg5 {[%clk 0:02:24]}  Nc5 {[%clk 0:01:18]} 16. Qc2 {[%clk 0:01:33]}  Qd3 {[%clk 0:01:08]} 17. Qc3 {[%clk 0:01:06]}  Qxc3 {[%clk 0:00:59]} 18. Bxc3 {[%clk 0:01:07]}  hxg5 {[%clk 0:00:59]} 19. Ke2 {[%clk 0:01:08]}  f6 {[%clk 0:00:58]} 20. Bb4 {[%clk 0:01:06]}  Rfd8 {[%clk 0:00:54]} 21. Bxc5 {[%clk 0:01:07]}  bxc5 {[%clk 0:00:54]} 22. Rac1 {[%clk 0:01:07]}  Rd5 {[%clk 0:00:55]} 23. Rc3 {[%clk 0:00:58]}  Rad8 {[%clk 0:00:35]} 24. d3 {[%clk 0:00:58]}  R8d7 {[%clk 0:00:25]} 25. Rd1 {[%clk 0:00:52]}  Kf7 {[%clk 0:00:23]} 26. Rd2 {[%clk 0:00:51]}  f5 {[%clk 0:00:19]} 27. Rc4 {[%clk 0:00:51]}  Kf6 {[%clk 0:00:18]} 28. Ra4 {[%clk 0:00:52]}  c6 {[%clk 0:00:16]} 29. Ra6 {[%clk 0:00:49]}  R5d6 {[%clk 0:00:16]} 30. Rc2 {[%clk 0:00:31]}  Rxd3 {[%clk 0:00:16]} 31. Rxc6 {[%clk 0:00:32]}  R3d5 {[%clk 0:00:16]} 32. R6xc5 {[%clk 0:00:31]}  Rxc5 {[%clk 0:00:15]} 33. Rxc5 {[%clk 0:00:32]}  g4 {[%clk 0:00:16]} 34. Ra5 {[%clk 0:00:32]}  g5 {[%clk 0:00:16]} 35. b4 {[%clk 0:00:19]}  e5 {[%clk 0:00:03]} 36. Ra6+ {[%clk 0:00:18]}  Kf7 {[%clk 0:00:03]} 37. b5 {[%clk 0:00:18]}  f4 {[%clk 0:00:01]} 38. a4 {[%clk 0:00:17]}  Rc7 {[%clk 0:00:02]} 39. Kd3 {[%clk 0:00:16]}  Rd7+ {[%clk 0:00:02]} 40. Ke4 {[%clk 0:00:16]}  g3 {[%clk 0:00:02]} 41. fxg3 {[%clk 0:00:15]}  fxe3 {[%clk 0:00:03]} 42. Kxe3 {[%clk 0:00:16]}  Rd4 {[%clk 0:00:03]} 43. Rxa7+ {[%clk 0:00:15]}  Kf6 {[%clk 0:00:04]} 44. b6 {[%clk 0:00:14]}  Rb4 {[%clk 0:00:02]} 45. a5 {[%clk 0:00:13]}  Kf5 {[%clk 0:00:02]} 46. Rf7+ {[%clk 0:00:11]}  Kg4 {[%clk 0:00:03]} 47. Rf6 {[%clk 0:00:10]}  Kxg3 {[%clk 0:00:02]} 48. a6 {[%clk 0:00:10]}  Rb3+ {[%clk 0:00:03]} 49. Ke4 {[%clk 0:00:10]}  Ra3 {[%clk 0:00:04]} 50. b7 {[%clk 0:00:10]}  g4 {[%clk 0:00:04]} 51. b8=Q {[%clk 0:00:10]} 1-0


[Site "https://www.chess.com"]

[Event "Titled Tuesday Blitz March 07 Early 2023"]
[White "Klabis, Rokas"]
[Black "Yelisieiev, Yevhenii"]
[WhiteFideId "12805246"]
[BlackFideId "14139642"]
[WhiteElo "2288"]
[BlackElo "2447"]
[Result "1-0"]
[Round "07"]
[TimeControl "180+2"]
[Date "2023.03.07"]
[WhiteClock "0:00:49"]
[BlackClock "0:00:03"]

1. e4 {[%clk 0:03:00]}  d6 {[%clk 0:03:00]} 2. d4 {[%clk 0:03:00]}  Nf6 {[%clk 0:03:01]} 3. Nc3 {[%clk 0:03:00]}  e5 {[%clk 0:03:02]} 4. dxe5 {[%clk 0:03:01]}  dxe5 {[%clk 0:03:03]} 5. Qxd8+ {[%clk 0:03:01]}  Kxd8 {[%clk 0:03:04]} 6. Be3 {[%clk 0:02:57]}  c6 {[%clk 0:03:02]} 7. f3 {[%clk 0:02:58]}  b5 {[%clk 0:03:01]} 8. g4 {[%clk 0:02:57]}  Nbd7 {[%clk 0:02:58]} 9. Nh3 {[%clk 0:02:58]}  Bc5 {[%clk 0:02:57]} 10. Kf2 {[%clk 0:02:56]}  Ke7 {[%clk 0:02:53]} 11. a4 {[%clk 0:02:52]}  b4 {[%clk 0:02:52]} 12. Na2 {[%clk 0:02:51]}  a5 {[%clk 0:02:52]} 13. Nc1 {[%clk 0:02:52]}  Bxe3+ {[%clk 0:02:51]} 14. Kxe3 {[%clk 0:02:52]}  Nc5 {[%clk 0:02:52]} 15. Bc4 {[%clk 0:02:51]}  Be6 {[%clk 0:02:51]} 16. Bxe6 {[%clk 0:02:45]}  Nxe6 {[%clk 0:02:51]} 17. Ne2 {[%clk 0:02:37]}  Nd7 {[%clk 0:02:47]} 18. Rhd1 {[%clk 0:02:35]}  Ndc5 {[%clk 0:02:46]} 19. Nf2 {[%clk 0:02:34]}  Rhd8 {[%clk 0:02:43]} 20. b3 {[%clk 0:02:35]}  f6 {[%clk 0:02:34]} 21. h4 {[%clk 0:02:31]}  g6 {[%clk 0:02:25]} 22. Rac1 {[%clk 0:02:31]}  Rxd1 {[%clk 0:02:22]} 23. Rxd1 {[%clk 0:02:30]}  Rd8 {[%clk 0:02:23]} 24. Rxd8 {[%clk 0:02:31]}  Kxd8 {[%clk 0:02:23]} 25. Nd3 {[%clk 0:02:31]}  Ke7 {[%clk 0:02:20]} 26. Nxc5 {[%clk 0:02:28]}  Nxc5 {[%clk 0:02:20]} 27. Nc1 {[%clk 0:02:25]}  Kd6 {[%clk 0:02:19]} 28. f4 {[%clk 0:02:15]}  Ne6 {[%clk 0:02:16]} 29. fxe5+ {[%clk 0:02:09]}  fxe5 {[%clk 0:02:16]} 30. Ne2 {[%clk 0:01:53]}  Kc5 {[%clk 0:02:16]} 31. h5 {[%clk 0:01:48]}  gxh5 {[%clk 0:02:06]} 32. gxh5 {[%clk 0:01:49]}  h6 {[%clk 0:01:58]} 33. Ng3 {[%clk 0:01:47]}  Ng7 {[%clk 0:01:18]} 34. Nf5 {[%clk 0:01:37]}  Nxh5 {[%clk 0:01:18]} 35. Nxh6 {[%clk 0:01:37]}  Nf4 {[%clk 0:01:17]} 36. Nf7 {[%clk 0:01:37]}  Ng6 {[%clk 0:01:13]} 37. Kd3 {[%clk 0:01:27]}  Nf4+ {[%clk 0:01:13]} 38. Ke3 {[%clk 0:01:27]}  Ng6 {[%clk 0:01:13]} 39. Nd8 {[%clk 0:01:27]}  Nf4 {[%clk 0:01:04]} 40. Nb7+ {[%clk 0:01:27]}  Kb6 {[%clk 0:01:04]} 41. Nd6 {[%clk 0:01:27]}  Ng6 {[%clk 0:00:49]} 42. Nc4+ {[%clk 0:01:27]}  Kc5 {[%clk 0:00:38]} 43. Nxa5 {[%clk 0:01:26]}  Nf8 {[%clk 0:00:35]} 44. Nc4 {[%clk 0:01:26]}  Nd7 {[%clk 0:00:35]} 45. Kd3 {[%clk 0:01:18]}  Nf6 {[%clk 0:00:23]} 46. Nxe5 {[%clk 0:01:17]}  Nh5 {[%clk 0:00:23]} 47. Ke3 {[%clk 0:01:16]}  Ng3 {[%clk 0:00:22]} 48. Nd3+ {[%clk 0:01:16]}  Kd6 {[%clk 0:00:22]} 49. Nxb4 {[%clk 0:01:15]}  Nf1+ {[%clk 0:00:22]} 50. Kd3 {[%clk 0:01:13]}  Ng3 {[%clk 0:00:22]} 51. a5 {[%clk 0:01:12]}  Kc5 {[%clk 0:00:21]} 52. c3 {[%clk 0:01:12]}  Kb5 {[%clk 0:00:21]} 53. a6 {[%clk 0:01:11]}  Kb6 {[%clk 0:00:22]} 54. a7 {[%clk 0:01:09]}  Kxa7 {[%clk 0:00:22]} 55. Nxc6+ {[%clk 0:01:10]}  Kb6 {[%clk 0:00:23]} 56. Nd4 {[%clk 0:01:10]}  Nh5 {[%clk 0:00:23]} 57. e5 {[%clk 0:01:08]}  Kc5 {[%clk 0:00:23]} 58. Ke4 {[%clk 0:01:06]}  Ng3+ {[%clk 0:00:22]} 59. Kf4 {[%clk 0:01:05]}  Nf1 {[%clk 0:00:22]} 60. e6 {[%clk 0:01:02]}  Kd6 {[%clk 0:00:22]} 61. Kf5 {[%clk 0:01:01]}  Ne3+ {[%clk 0:00:22]} 62. Kf6 {[%clk 0:01:01]}  Nd5+ {[%clk 0:00:22]} 63. Kf7 {[%clk 0:01:01]}  Nxc3 {[%clk 0:00:16]} 64. e7 {[%clk 0:01:01]}  Kd5 {[%clk 0:00:12]} 65. Nf5 {[%clk 0:00:55]}  Ke5 {[%clk 0:00:03]} 66. Kg6 {[%clk 0:00:49]} 1-0


[Site "https://www.chess.com"]

[Event "Titled Tuesday Blitz March 07 Early 2023"]
[White "Petrosian, Karlen"]
[Black "Fiorito, Joaquin"]
[WhiteFideId "4176146"]
[BlackFideId "180173"]
[WhiteElo "2345"]
[BlackElo "2157"]
[Result "0-1"]
[Round "07"]
[TimeControl "180+2"]
[Date "2023.03.07"]
[WhiteClock "0:01:21"]
[BlackClock "0:01:55"]

1. e4 {[%clk 0:03:00]}  c6 {[%clk 0:02:59]} 2. Nf3 {[%clk 0:03:00]}  d5 {[%clk 0:02:59]} 3. d3 {[%clk 0:03:01]}  g6 {[%clk 0:02:59]} 4. c3 {[%clk 0:02:58]}  Bg7 {[%clk 0:02:59]} 5. Nbd2 {[%clk 0:02:57]}  e5 {[%clk 0:02:59]} 6. Be2 {[%clk 0:02:57]}  Ne7 {[%clk 0:02:58]} 7. O-O {[%clk 0:02:57]}  O-O {[%clk 0:02:59]} 8. a4 {[%clk 0:02:57]}  Nd7 {[%clk 0:03:00]} 9. a5 {[%clk 0:02:57]}  a6 {[%clk 0:02:59]} 10. Re1 {[%clk 0:02:55]}  h6 {[%clk 0:02:59]} 11. Nf1 {[%clk 0:02:45]}  Nc5 {[%clk 0:02:55]} 12. b4 {[%clk 0:02:38]}  dxe4 {[%clk 0:02:47]} 13. bxc5 {[%clk 0:02:37]}  exf3 {[%clk 0:02:47]} 14. Bxf3 {[%clk 0:02:38]}  e4 {[%clk 0:02:48]} 15. Bxe4 {[%clk 0:02:34]}  Bxc3 {[%clk 0:02:47]} 16. Bxh6 {[%clk 0:02:34]}  Re8 {[%clk 0:02:45]} 17. Re3 {[%clk 0:02:26]}  Nf5 {[%clk 0:02:37]} 18. Bxf5 {[%clk 0:02:18]}  Bxf5 {[%clk 0:02:38]} 19. Rxe8+ {[%clk 0:01:58]}  Qxe8 {[%clk 0:02:39]} 20. Rb1 {[%clk 0:01:59]}  Qd7 {[%clk 0:02:37]} 21. Qb3 {[%clk 0:01:45]}  Qxd3 {[%clk 0:02:16]} 22. Qxb7 {[%clk 0:01:43]}  Qxb1 {[%clk 0:02:14]} 23. Qxa8+ {[%clk 0:01:43]}  Kh7 {[%clk 0:02:14]} 24. Qf8 {[%clk 0:01:33]}  Bd3 {[%clk 0:02:12]} 25. Qxf7+ {[%clk 0:01:27]}  Kxh6 {[%clk 0:02:12]} 26. Qf4+ {[%clk 0:01:26]}  g5 {[%clk 0:01:57]} 27. Qf8+ {[%clk 0:01:20]}  Bg7 {[%clk 0:01:54]} 28. Qd6+ {[%clk 0:01:21]}  Kh7 {[%clk 0:01:55]} 0-1


[Site "https://www.chess.com"]

[Event "Titled Tuesday Blitz March 07 Early 2023"]
[White "Karthik Rajaa"]
[Black "Derjabin, Ilja"]
[WhiteFideId "25035215"]
[BlackFideId "14104768"]
[WhiteElo "2215"]
[BlackElo "2309"]
[Result "1-0"]
[Round "07"]
[TimeControl "180+2"]
[Date "2023.03.07"]
[WhiteClock "0:00:12"]
[BlackClock "0:00:07"]

1. Nf3 {[%clk 0:03:00]}  c5 {[%clk 0:02:55]} 2. c4 {[%clk 0:02:59]}  Nf6 {[%clk 0:02:54]} 3. Nc3 {[%clk 0:03:00]}  g6 {[%clk 0:02:53]} 4. e3 {[%clk 0:02:58]}  Bg7 {[%clk 0:02:51]} 5. b3 {[%clk 0:02:52]}  O-O {[%clk 0:02:52]} 6. Bb2 {[%clk 0:02:53]}  d5 {[%clk 0:02:48]} 7. Nxd5 {[%clk 0:02:52]}  Nxd5 {[%clk 0:02:47]} 8. Bxg7 {[%clk 0:02:53]}  Kxg7 {[%clk 0:02:48]} 9. cxd5 {[%clk 0:02:53]}  Qxd5 {[%clk 0:02:49]} 10. d4 {[%clk 0:02:52]}  cxd4 {[%clk 0:02:45]} 11. Qxd4+ {[%clk 0:02:52]}  Qxd4 {[%clk 0:02:45]} 12. Nxd4 {[%clk 0:02:53]}  a6 {[%clk 0:02:38]} 13. Be2 {[%clk 0:02:51]}  e5 {[%clk 0:02:36]} 14. Nc2 {[%clk 0:02:50]}  Bf5 {[%clk 0:02:31]} 15. Nb4 {[%clk 0:02:45]}  a5 {[%clk 0:02:26]} 16. Nd5 {[%clk 0:02:38]}  Nc6 {[%clk 0:02:13]} 17. f3 {[%clk 0:02:27]}  Nb4 {[%clk 0:02:10]} 18. Nxb4 {[%clk 0:02:02]}  axb4 {[%clk 0:02:11]} 19. Bc4 {[%clk 0:01:49]}  Ra5 {[%clk 0:01:52]} 20. e4 {[%clk 0:01:46]}  Be6 {[%clk 0:01:44]} 21. Bxe6 {[%clk 0:01:45]}  fxe6 {[%clk 0:01:44]} 22. Rf1 {[%clk 0:01:46]}  Rfa8 {[%clk 0:01:24]} 23. Rf2 {[%clk 0:01:46]}  Ra3 {[%clk 0:01:25]} 24. Rb2 {[%clk 0:01:47]}  Kf6 {[%clk 0:01:25]} 25. Ke2 {[%clk 0:01:42]}  h5 {[%clk 0:01:24]} 26. h4 {[%clk 0:01:39]}  b5 {[%clk 0:01:22]} 27. Ke3 {[%clk 0:01:12]}  R3a7 {[%clk 0:01:19]} 28. Rc2 {[%clk 0:01:10]}  Rd8 {[%clk 0:01:11]} 29. Rc5 {[%clk 0:01:06]}  Rb8 {[%clk 0:00:52]} 30. g4 {[%clk 0:00:55]}  hxg4 {[%clk 0:00:33]} 31. fxg4 {[%clk 0:00:56]}  Rd7 {[%clk 0:00:23]} 32. Rf1+ {[%clk 0:00:52]}  Ke7 {[%clk 0:00:22]} 33. Rxe5 {[%clk 0:00:40]}  Rbd8 {[%clk 0:00:17]} 34. Rxb5 {[%clk 0:00:30]}  Rd3+ {[%clk 0:00:17]} 35. Kf2 {[%clk 0:00:23]}  R3d4 {[%clk 0:00:16]} 36. Re1 {[%clk 0:00:15]}  Rd3 {[%clk 0:00:07]} 37. Rb7+ {[%clk 0:00:13]}  Kf6 {[%clk 0:00:07]} 38. e5# {[%clk 0:00:12]} 1-0


[Site "https://www.chess.com"]

[Event "Titled Tuesday Blitz March 07 Early 2023"]
[White "Andreev, Konstantin"]
[Black "Martinez Ramirez, Lennis"]
[WhiteFideId "24239305"]
[BlackFideId "3509079"]
[WhiteElo "2106"]
[BlackElo "2439"]
[Result "0-1"]
[Round "07"]
[TimeControl "180+2"]
[Date "2023.03.07"]
[WhiteClock "0:00:01"]
[BlackClock "0:00:17"]

1. e4 {[%clk 0:03:00]}  c5 {[%clk 0:02:59]} 2. Nf3 {[%clk 0:03:01]}  d6 {[%clk 0:02:59]} 3. d4 {[%clk 0:03:01]}  cxd4 {[%clk 0:03:00]} 4. Nxd4 {[%clk 0:03:02]}  Nf6 {[%clk 0:03:01]} 5. Nc3 {[%clk 0:03:02]}  a6 {[%clk 0:03:01]} 6. h4 {[%clk 0:03:02]}  e5 {[%clk 0:03:01]} 7. Nb3 {[%clk 0:03:02]}  b5 {[%clk 0:02:54]} 8. a4 {[%clk 0:02:55]}  bxa4 {[%clk 0:02:48]} 9. Rxa4 {[%clk 0:02:53]}  Bb7 {[%clk 0:02:47]} 10. f3 {[%clk 0:02:41]}  Bc6 {[%clk 0:02:44]} 11. Ra1 {[%clk 0:02:39]}  a5 {[%clk 0:02:44]} 12. Be3 {[%clk 0:02:32]}  a4 {[%clk 0:02:43]} 13. Nd2 {[%clk 0:02:32]}  d5 {[%clk 0:02:42]} 14. exd5 {[%clk 0:02:32]}  Nxd5 {[%clk 0:02:42]} 15. Nxd5 {[%clk 0:02:32]}  Qxd5 {[%clk 0:02:42]} 16. Bc4 {[%clk 0:02:31]}  Qd7 {[%clk 0:02:37]} 17. Kf2 {[%clk 0:02:23]}  Be7 {[%clk 0:02:35]} 18. Qe2 {[%clk 0:02:22]}  O-O {[%clk 0:02:35]} 19. Ne4 {[%clk 0:02:21]}  Kh8 {[%clk 0:02:19]} 20. Nc5 {[%clk 0:02:10]}  Qe8 {[%clk 0:02:10]} 21. h5 {[%clk 0:01:41]}  h6 {[%clk 0:01:51]} 22. Rhd1 {[%clk 0:01:37]}  f5 {[%clk 0:01:38]} 23. Ne6 {[%clk 0:01:35]}  f4 {[%clk 0:01:29]} 24. Bd2 {[%clk 0:01:32]}  Rf6 {[%clk 0:01:11]} 25. Nc7 {[%clk 0:01:06]}  Bc5+ {[%clk 0:01:09]} 26. Kf1 {[%clk 0:00:59]}  Qxh5 {[%clk 0:01:09]} 27. Be3 {[%clk 0:00:40]}  fxe3 {[%clk 0:01:08]} 28. Rd8+ {[%clk 0:00:39]}  Rf8 {[%clk 0:01:08]} 29. Rxf8+ {[%clk 0:00:33]}  Bxf8 {[%clk 0:01:08]} 30. Qxe3 {[%clk 0:00:25]}  Qh1+ {[%clk 0:01:03]} 31. Qg1 {[%clk 0:00:25]}  Qxg1+ {[%clk 0:01:02]} 32. Kxg1 {[%clk 0:00:26]}  Bc5+ {[%clk 0:01:00]} 33. Kf1 {[%clk 0:00:26]}  Ra7 {[%clk 0:01:00]} 34. Ne6 {[%clk 0:00:22]}  Nd7 {[%clk 0:00:59]} 35. Rd1 {[%clk 0:00:18]}  Be7 {[%clk 0:00:57]} 36. Rd3 {[%clk 0:00:13]}  e4 {[%clk 0:00:55]} 37. fxe4 {[%clk 0:00:13]}  Bxe4 {[%clk 0:00:53]} 38. Re3 {[%clk 0:00:13]}  Bxc2 {[%clk 0:00:52]} 39. Nd4 {[%clk 0:00:13]}  Nb6 {[%clk 0:00:47]} 40. Bb5 {[%clk 0:00:07]}  Bg6 {[%clk 0:00:28]} 41. Nc6 {[%clk 0:00:07]}  Bg5 {[%clk 0:00:19]} 42. Re6 {[%clk 0:00:04]}  Rf7+ {[%clk 0:00:19]} 43. Ke1 {[%clk 0:00:03]}  Rf6 {[%clk 0:00:17]} 44. Re2 {[%clk 0:00:01]}  Nd5 {[%clk 0:00:17]} 0-1


[Site "https://www.chess.com"]

[Event "Titled Tuesday Blitz March 07 Early 2023"]
[White "Sargissyan, Sargis"]
[Black "Zahid, Sanatan"]
[WhiteFideId "13303210"]
[BlackFideId "10201963"]
[WhiteElo "2109"]
[BlackElo "1865"]
[Result "1-0"]
[Round "07"]
[TimeControl "180+2"]
[Date "2023.03.07"]
[WhiteClock "0:00:08"]
[BlackClock "0:00:56"]

1. e4 {[%clk 0:03:00]}  e6 {[%clk 0:03:00]} 2. d4 {[%clk 0:03:00]}  d5 {[%clk 0:03:01]} 3. Nc3 {[%clk 0:03:01]}  Nf6 {[%clk 0:03:01]} 4. Bg5 {[%clk 0:03:00]}  Be7 {[%clk 0:03:01]} 5. e5 {[%clk 0:03:00]}  Nfd7 {[%clk 0:03:01]} 6. Bxe7 {[%clk 0:03:01]}  Qxe7 {[%clk 0:03:02]} 7. f4 {[%clk 0:03:01]}  Nb6 {[%clk 0:03:00]} 8. Nf3 {[%clk 0:02:59]}  Bd7 {[%clk 0:03:01]} 9. Bd3 {[%clk 0:02:56]}  c5 {[%clk 0:03:01]} 10. Nb5 {[%clk 0:02:53]}  Bxb5 {[%clk 0:02:56]} 11. Bxb5+ {[%clk 0:02:53]}  Nc6 {[%clk 0:02:57]} 12. O-O {[%clk 0:02:49]}  O-O-O {[%clk 0:02:50]} 13. c3 {[%clk 0:02:30]}  Kb8 {[%clk 0:02:49]} 14. a4 {[%clk 0:02:26]}  a6 {[%clk 0:02:43]} 15. Bxc6 {[%clk 0:02:21]}  bxc6 {[%clk 0:02:43]} 16. a5 {[%clk 0:02:18]}  Nd7 {[%clk 0:02:43]} 17. b4 {[%clk 0:02:12]}  c4 {[%clk 0:02:42]} 18. Qc2 {[%clk 0:01:42]}  g6 {[%clk 0:02:38]} 19. Rae1 {[%clk 0:01:24]}  Rdg8 {[%clk 0:02:35]} 20. Rf2 {[%clk 0:01:18]}  Kc7 {[%clk 0:02:34]} 21. h3 {[%clk 0:01:13]}  h5 {[%clk 0:02:34]} 22. Ng5 {[%clk 0:01:12]}  Nf8 {[%clk 0:02:34]} 23. g3 {[%clk 0:01:03]}  Nh7 {[%clk 0:02:32]} 24. Nxh7 {[%clk 0:00:56]}  Rxh7 {[%clk 0:02:31]} 25. Ref1 {[%clk 0:00:56]}  Rgh8 {[%clk 0:02:28]} 26. Qb1 {[%clk 0:00:54]}  Qd8 {[%clk 0:02:28]} 27. Qc2 {[%clk 0:00:54]}  Qb8 {[%clk 0:02:27]} 28. Qb1 {[%clk 0:00:51]}  Rg8 {[%clk 0:02:27]} 29. Qc2 {[%clk 0:00:51]}  Rhg7 {[%clk 0:02:26]} 30. Qb1 {[%clk 0:00:51]}  Qf8 {[%clk 0:02:24]} 31. Qc2 {[%clk 0:00:51]}  f5 {[%clk 0:02:23]} 32. exf6 {[%clk 0:00:50]}  Qxf6 {[%clk 0:02:23]} 33. h4 {[%clk 0:00:51]}  Qf5 {[%clk 0:02:21]} 34. Qd2 {[%clk 0:00:43]}  Qg4 {[%clk 0:02:20]} 35. Kh2 {[%clk 0:00:42]}  Rf8 {[%clk 0:02:16]} 36. Re1 {[%clk 0:00:41]}  Re7 {[%clk 0:02:16]} 37. Re5 {[%clk 0:00:38]}  Rf5 {[%clk 0:02:12]} 38. Qe1 {[%clk 0:00:34]}  Kd7 {[%clk 0:02:11]} 39. Rfe2 {[%clk 0:00:26]}  Rxe5 {[%clk 0:02:01]} 40. Rxe5 {[%clk 0:00:26]}  Qf3 {[%clk 0:01:55]} 41. Re3 {[%clk 0:00:25]}  Qg4 {[%clk 0:01:54]} 42. Re5 {[%clk 0:00:22]}  Rg7 {[%clk 0:01:45]} 43. Kg2 {[%clk 0:00:21]}  g5 {[%clk 0:01:33]} 44. Rxg5 {[%clk 0:00:18]}  Rxg5 {[%clk 0:01:34]} 45. hxg5 {[%clk 0:00:16]}  h4 {[%clk 0:01:33]} 46. Kh2 {[%clk 0:00:13]}  Qf3 {[%clk 0:01:26]} 47. gxh4 {[%clk 0:00:12]}  Qxf4+ {[%clk 0:01:26]} 48. Qg3 {[%clk 0:00:13]}  Qd2+ {[%clk 0:01:25]} 49. Kh3 {[%clk 0:00:12]}  Qd3 {[%clk 0:01:22]} 50. h5 {[%clk 0:00:12]}  Qf1+ {[%clk 0:01:21]} 51. Kh4 {[%clk 0:00:11]}  Qh1+ {[%clk 0:01:21]} 52. Kg4 {[%clk 0:00:11]}  Qe4+ {[%clk 0:01:21]} 53. Kh3 {[%clk 0:00:10]}  Qh1+ {[%clk 0:01:20]} 54. Kg4 {[%clk 0:00:10]}  Qd1+ {[%clk 0:01:13]} 55. Qf3 {[%clk 0:00:09]}  Qg1+ {[%clk 0:01:13]} 56. Kh4 {[%clk 0:00:08]}  Qh2+ {[%clk 0:01:04]} 57. Kg4 {[%clk 0:00:08]}  Ke7 {[%clk 0:01:03]} 58. h6 {[%clk 0:00:08]}  Qg1+ {[%clk 0:01:03]} 59. Kh5 {[%clk 0:00:07]}  Qb1 {[%clk 0:01:01]} 60. Qf6+ {[%clk 0:00:07]}  Kd7 {[%clk 0:01:00]} 61. Qf7+ {[%clk 0:00:07]}  Kd6 {[%clk 0:01:00]} 62. h7 {[%clk 0:00:07]}  c5 {[%clk 0:01:00]} 63. bxc5+ {[%clk 0:00:07]}  Kc6 {[%clk 0:00:59]} 64. Kh6 {[%clk 0:00:05]}  e5 {[%clk 0:00:54]} 65. Qe6+ {[%clk 0:00:05]}  Kb5 {[%clk 0:00:54]} 66. Qb6+ {[%clk 0:00:05]}  Ka4 {[%clk 0:00:54]} 67. Qxb1 {[%clk 0:00:06]}  exd4 {[%clk 0:00:55]} 68. cxd4 {[%clk 0:00:06]}  c3 {[%clk 0:00:55]} 69. h8=Q {[%clk 0:00:07]}  c2 {[%clk 0:00:55]} 70. Qxc2+ {[%clk 0:00:07]}  Ka3 {[%clk 0:00:56]} 71. c6 {[%clk 0:00:08]}  Kb4 {[%clk 0:00:55]} 72. Qb8+ {[%clk 0:00:08]}  Ka3 {[%clk 0:00:56]} 73. Qbb3# {[%clk 0:00:08]} 1-0


[Site "https://www.chess.com"]